Cogmind - Beta 17 @@@ ROGUE MODE // 2026.06.30 @ 18:28:16 Player: [THREAT] Result: Self-destructed Performance ------------- Evolutions (1) 500 Regions Visited (2) 400 Robots Destroyed (43) 215 Value Destroyed (721) 721 Prototype IDs (0) 0 Alien Tech Used (0) 0 Bonus (0) 0 TOTAL SCORE: 1836 Bonus ------- None Cogmind --------- Core Integrity 270/400 Matter 300/300 Energy 72/100 System Corruption 0% Temperature Hot (207) Movement Core (300) Ox5 Location -9/Materials Parts ------- > --- POWER (1) -------- (None) > --- PROPULSION (4) --- (None) > --- UTILITY (2) ------ Heat Sink Medium Storage Unit > --- WEAPON (2) ------- Beam Rifle Beam Rifle > --- INVENTORY (10) --- Aluminum Leg Heat Sink Weight Redist. System Melee Analysis Suite Shield Generator Recalibrator EM Pulse Gun Heavy Assault Rifle Heavy Assault Rifle Datajack Peak State ------------ > --- POWER ------------ Improved Ion Engine > --- PROPULSION ------- Aluminum Leg Aluminum Leg Aluminum Leg Improved Aluminum Leg > --- UTILITY ---------- Medium Storage Unit Recalibrator > --- WEAPON ----------- Beam Rifle Beam Rifle > --- INVENTORY -------- Aluminum Leg Heat Sink Heat Sink Weight Redist. System Melee Analysis Suite Shield Generator EM Pulse Gun Heavy Assault Rifle Heavy Assault Rifle Datajack [Rating: 17] Favorites ----------- Power Light Ion Engine Engine Light Ion Engine Propulsion Aluminum Leg Leg Aluminum Leg Utility Heat Sink Device Heat Sink Storage Small Storage Unit Weapon Medium Laser Energy Gun Medium Laser Ballistic Gun Assault Rifle Build | -11 -10 -9 ------- Run | Yrd Mat Mat Slots Evolved 2 | . . 2 Power . | . . . Propulsion 2 | . . 2 Utility . | . . . Weapon . | . . . Parts Attached 23 | 6 6 11 Power 3 | 1 1 1 Engine 3 | 1 1 1 Core . | . . . Reactor . | . . . Propulsion 9 | 2 2 5 Treads . | . . . Leg 9 | 2 2 5 Wheel . | . . . Hover . | . . . Flight . | . . . Utility 5 | 1 1 3 Device 3 | . 1 2 Storage 2 | 1 . 1 Processor . | . . . Hackware . | . . . Protection . | . . . Artifact . | . . . Weapon 6 | 2 2 2 Energy Gun 5 | 1 2 2 Energy Cannon . | . . . Ballistic Gun 1 | 1 . . Ballistic Cannon . | . . . Launcher . | . . . Special Weapon . | . . . Impact Weapon . | . . . Slashing Weapon . | . . . Piercing Weapon . | . . . Special Melee Weapon . | . . . Unidentified Prototypes . | . . . Parts Lost 6 | . . 6 Power 1 | . . 1 Propulsion 5 | . . 5 Utility . | . . . Weapon . | . . . Highest Loss Streak 5 | . . 5 To Critical Strikes . | . . . Average Backups 5 | 1 2 8 Power . | . . . Propulsion 1 | . . 1 Utility 2 | . . 3 Weapon 1 | . 1 2 Tool/Special . | . . . Unused Backups 9 | . 1 8 Power . | . . . Propulsion . | . . . Utility 5 | . 1 4 Weapon 3 | . . 3 Tool/Special 1 | . . 1 Average Slot Usage (%) 93 | . 91 95 Engine 11 | . 14 10 Leg 35 | . 28 40 Device 9 | . 6 11 Storage 12 | . 14 11 Energy Gun 20 | . 19 22 Ballistic Gun 2 | . 7 . Peak Build Rating 17 | 6 7 17 Average Rating 9 | 5 6 12 On Entrance 4 | . 6 7 Avg Prop Armor Cover (%) . | . . . Naked Turns . | . . . Heaviest Build 24 | 12 13 24 Greatest Support 43 | 20 20 43 Greatest Overweight (x) . | . . . Average Overweight (x) . | . . . Largest Inventory Capacity 10 | 8 8 10 Average Capacity 8 | 7 8 9 Most Carried 10 | 4 5 10 Average Carried 5 | 1 2 8 Final Capacity 10 | 8 8 10 Final Carried 10 | 2 5 10 Class Distribution -------------------- 59% | Mutant 40% | Scavenger-Mutant Dominant Class ---------------- Mutant | -10/Materials Scavenger-Mutant | -9/Materials Resources | -11 -10 -9 ----------- Run | Yrd Mat Mat Matter Collected 545 | 296 129 120 Remotely . | . . . Salvage Created 1467 | 201 345 921 Parts 84 | 17 21 46 Haulers Intercepted 2 | . 1 1 Recyclers Shooed 7 | 1 . 6 Parts Field Recycled . | . . . Retrieved Matter . | . . . Parts Self-Destructed . | . . . Prevented . | . . . Parts Restored . | . . . Kills | -11 -10 -9 ------- Run | Yrd Mat Mat Combat Hostiles Destroyed 19 | . 5 14 Guns 18 | . 4 14 Classes Destroyed 12 | 2 6 4 Worker 5 | . 2 3 Builder 2 | . 1 1 Tunneler 5 | 5 . . Hauler 2 | . 1 1 Recycler 5 | 1 . 4 Mechanic 2 | . . 2 Operator 1 | . 1 . Watcher 2 | . 1 1 Swarmer 6 | . . 6 Grunt 10 | . 5 5 Duelist 1 | . . 1 Sentry 2 | . . 2 Best Kill Streak 6 | 6 3 5 Combat Bots Only 5 | . 2 5 Max Kills in Single Turn 1 | 1 1 1 Gunslinging . | . . . Exploded . | . . . Melee . | . . . Uniques/NPCs Destroyed . | . . . Combat | -11 -10 -9 -------- Run | Yrd Mat Mat Hostile Shots Fired 153 | . 39 114 Missed 31 | . 6 25 Hits 122 | . 33 89 Projectile 122 | . 33 89 Damage Taken 1275 | . 410 865 Core 212 | . 82 130 Absorbed by Shields . | . . . Regen/Repaired (Parts) 46 | . 46 . Core Remaining (%) 83 | 100 67 . Volleys Fired 126 | 12 30 84 Largest 2 | 2 2 2 Hottest 112 | 70 90 112 Shots Fired 252 | 24 60 168 Gun 252 | 24 60 168 Cannon . | . . . Launcher . | . . . Special . | . . . Kinetic 35 | 12 23 . Thermal 217 | 12 37 168 Explosive . | . . . Electromagnetic . | . . . Robot Hit Streak 10 | 8 10 10 Robot Miss Streak 5 | 2 3 5 Penetration Max . | . . . Secondary Targets 6 | . 1 5 Max Gunslinging Chain 1 | . 1 1 Shots Hit Robots 160 | 17 41 102 Core Hits 61 | 7 18 36 Critical Kills . | . . . Critical Parts Destroyed . | . . . Critical Strikes 14 | 3 1 10 Burn 14 | 3 1 10 Melee Attacks . | . . . Impact . | . . . Slashing . | . . . Piercing . | . . . Sneak Attacks . | . . . Combat Hostiles . | . . . Follow-up Attacks . | . . . Damage Inflicted 2189 | 218 525 1446 Guns 2189 | 218 525 1446 Cannons . | . . . Explosions . | . . . Melee . | . . . Ramming . | . . . Kinetic 323 | 92 231 . Thermal 1866 | 126 294 1446 Explosive . | . . . Electromagnetic . | . . . Impact . | . . . Slashing . | . . . Piercing . | . . . Highest Corruption . | . . . Average Corruption . | . . . Corruption Purged . | . . . Corruption Blocked . | . . . Overload Shots . | . . . Overflow Damage . | . . . Projectiles . | . . . Explosions . | . . . Melee . | . . . Knockbacks . | . . . Impact . | . . . Kinetic . | . . . Secondary . | . . . Self-Inflicted Damage . | . . . Shots . | . . . Rammed . | . . . Targets Rammed . | . . . Kicked . | . . . Crushed . | . . . Highest Temperature 348 | 72 274 348 Average Temperature 75 | 29 84 79 Received Heat Transfer 462 | . 231 231 Effects 2 | . . 2 Interference 2 | . . 2 Siege Activations . | . . . Martial Activations . | . . . Shielding Activations . | . . . Robots Disrupted . | . . . Combat Hostiles . | . . . Robots Corrupted . | . . . Combat Hostiles . | . . . Parts Fried . | . . . Impact Corruptions . | . . . Robots Melted 1 | . 1 . Combat Hostiles 1 | . 1 . Parts Melted 13 | 3 . 10 Heat Transferred 6070 | 592 890 4588 Parts Sabotaged . | . . . Parts Stolen . | . . . Parts Stripped . | . . . Power Chain Reactions . | . . . Alert | -11 -10 -9 ------- Run | Yrd Mat Mat Maximum Alert Level . | . . . Low Security (%) 100 | 100 100 100 Level 1 . | . . . Level 2 . | . . . Level 3 . | . . . Level 4 . | . . . Level 5 . | . . . High Security . | . . . Max Security . | . . . Peak Influence 149 | 20 81 149 Initial 13 | . 6 13 Average 56 | 5 34 80 Influence Increases 620 | 30 173 417 Destroy 0b10 Robot/C 380 | . 100 280 Destroy 0b10 Robot/NC 120 | 30 30 60 Destroy Leader 98 | . 34 64 Successful Hack 21 | . 9 12 Destroy Structure 1 | . . 1 Influence Decreases 489 | 20 152 317 Entered New Map 22 | . 4 18 Time Decay 407 | 20 148 239 Lost Part 60 | . . 60 Squads Dispatched 3 | . 3 . Investigation . | . . . Extermination . | . . . Reinforcement 3 | . 3 . Assault . | . . . Garrison . | . . . Intercept . | . . . Searches Triggered . | . . . Construction Impeded . | . . . Haulers Reinforced . | . . . Active Scanning Responses . | . . . Cargo Convoy Interrupts . | . . . Stealth | -11 -10 -9 --------- Run | Yrd Mat Mat Distress Signals 5 | . 2 3 Communications Jammed . | . . . Distress Signals . | . . . Times Spotted 29 | . 7 22 Peak Tracking Total 5 | . 2 5 Tactical Retreats . | . . . Traps | -11 -10 -9 ------- Run | Yrd Mat Mat Traps Triggered . | . . . Indirectly . | . . . Trap Hack Attempts . | . . . Triggered . | . . . Disarmed . | . . . Reprogrammed . | . . . Reused . | . . . Traps Extracted . | . . . Installed . | . . . Triggered . | . . . Machines | -11 -10 -9 ---------- Run | Yrd Mat Mat Machines Disabled . | . . . Max in Single Turn . | . . . Machines Repaired . | . . . Machines Dismantled . | . . . Machines Sabotaged . | . . . Overloaded Fab Kills . | . . . Hacking | -11 -10 -9 --------- Run | Yrd Mat Mat Machines Accessed 3 | . 2 1 Terminals 2 | . 1 1 Fabricators . | . . . Repair Stations 1 | . 1 . Recycling Units . | . . . Scanalyzers . | . . . Garrison Access . | . . . Total Hacks 7 | . 4 3 Successful 7 | . 4 3 Failed . | . . . Catastrophic . | . . . Database Lockouts . | . . . Manual 3 | . 1 2 Terminals 5 | . 2 3 Fabricators . | . . . Repair Stations 2 | . 2 . Recycling Units . | . . . Scanalyzers . | . . . Garrison Access . | . . . Terminal Hacks 3 | . 1 2 Part Schematic 1 | . . 1 Robot Analysis 1 | . . 1 Emergency Access Points 1 | . 1 . Fabricator Hacks . | . . . Repair Station Hacks 2 | . 2 . Scan Component 1 | . 1 . Repair 1 | . 1 . Recycling Unit Hacks . | . . . Scanalyzer . | . . . Garrison Access Hacks . | . . . Unauthorized Hacks 2 | . 1 1 Terminals 2 | . 1 1 Botnet 2 | . 1 1 Fabricators . | . . . Repair Stations . | . . . Recycling Units . | . . . Scanalyzers . | . . . Garrison Access . | . . . Data Cores Recovered . | . . . Used . | . . . Hacking Detections 2 | . 2 . Full Trace Events . | . . . Feedback Events . | . . . Feedback Blocked . | . . . Robot Schematics Acquired . | . . . Robots Built . | . . . Authchips . | . . . Time . | . . . Total Robot Build Rating . | . . . Part Schematics Acquired 1 | . . 1 Parts Built . | . . . Authchips . | . . . Time . | . . . Total Part Build Rating . | . . . Part Studies Acquired . | . . . Parts Repaired 1 | . 1 . Time 26 | . 26 . Parts Recycled . | . . . Recycled Matter . | . . . Retrieved Matter . | . . . Retrieved Components . | . . . Parts Scanalyzed . | . . . Part Schematics Acquired . | . . . Parts Damaged . | . . . Bothacking | -11 -10 -9 ------------ Run | Yrd Mat Mat Used RIF Installer . | . . . Robots Hacked . | . . . Non-combat . | . . . Combat . | . . . Robot Hacks Applied . | . . . Relay Couplers Released . | . . . Fabnet Peak Effective % . | . . . Robots Rewired . | . . . Allies Hacked . | . . . Hacks Repelled . | . . . Allies | -11 -10 -9 -------- Run | Yrd Mat Mat Total Allies . | . . . Largest Group . | . . . Highest-Rated Group . | . . . Highest-Rated Ally . | . . . Total Orders . | . . . Ally Attacks . | . . . Total Damage . | . . . Kills . | . . . Allies Corrupted . | . . . Allies Melted . | . . . Intel | -11 -10 -9 ------- Run | Yrd Mat Mat Active Infowar (turns) . | . . . Robot Analysis Total 1 | . . 1 Derelict Logs Recovered . | . . . Drone Launches . | . . . Drone Recoveries . | . . . Exploration | -11 -10 -9 ------------- Run | Yrd Mat Mat Turns Passed 971 | 99 338 534 Spaces Moved 390 | 48 165 177 Core 12 | 12 . . Treads . | . . . Legs 378 | 36 165 177 Wheels . | . . . Hover . | . . . Flight . | . . . Fastest Speed 50 | 50 120 120 Average Speed 117 | 102 120 120 Slowest Speed 120 | 120 120 120 Overloaded Moves . | . . . Propulsion Burnouts . | . . . Robots Hopped . | . . . Potential Cave-ins . | . . . Cave-ins Triggered . | . . . Exploration Rate (%) 19 | 4 32 21 Regions Visited 2 Branch Regions . Pre-discovered Areas . | . . . Known Exits Taken . | . . . Unknown Exits Taken 2 | 1 1 . Scrap Searched . | . . . Spaces Dug . | . . . Terrain Destroyed . | . . . Melee . | . . . Projectile . | . . . AOE . | . . . Terrain Rammed . | . . . Walls Destroyed . | . . . Machines Disabled . | . . . Actions | -11 -10 -9 --------- Run | Yrd Mat Mat Total 649 | 73 245 331 Wait 66 | . 27 39 Move 388 | 47 164 177 Hop . | . . . Pick Up 30 | 8 11 11 Fast Attach 1 | . . 1 Attach 10 | 6 2 2 Detach . | . . . Swap 14 | . 5 9 Drop 14 | . 6 8 Fire 126 | 12 30 84 Melee . | . . . Ram . | . . . Kick . | . . . Crush . | . . . Escape Stasis . | . . . Rewire . | . . . Trap . | . . . Miscellaneous . | . . . Route ------- -11/Scrapyard -10/Materials -9/Materials (discovered 2 exits: [*Sto x2]) History --------- Turn | Location | Event 5 | -11/Scrapyard | Discovered new exit (range 14) 100 | -11/Scrapyard | Entered Materials 101 | -10/Materials | Met a group of wandering Federalists 274 | -10/Materials | Discovered new exit (range 16) 305 | -10/Materials | Build established: Mutant 377 | -10/Materials | Repaired Med. Laser 438 | -10/Materials | Entered another Materials area 438 | -9/Materials | Evolved 2 slots: Propulsion x2 658 | -9/Materials | Discovered new exit (range 13) 735 | -9/Materials | Discovered new exit (range 10) 972 | -9/Materials | Self-destructed Last Messages --------------- Aluminum Leg destroyed. Imp. Aluminum Leg destroyed. G-34 Mercenary suffers critical hit (Burn). G-34 Mercenary destroyed. Switching to secondary target: S-10 Pest. S-10 Pest destroyed. Switching to secondary target: S-10 Pest. Imp. Ion Engine destroyed. S-10 Pest suffers critical hit (Burn). Aluminum Leg destroyed. K-01 Serf collects debris. Destroyed Flight Unit. S-10 Pest destroyed. Overheating: System interference. Beam Rifle temporarily disabled. Heat Sink temporarily disabled. K-01 Serf collects debris. Aluminum Leg destroyed. R-06 Scavenger collects Lgt. Ion Engine. K-01 Serf collects debris. Map ----- +----------------------------------------------------+ | #??# [ """ #??"" ??????????????? | | #??# ^ ^""" #? #?????????????? | | #??# """" """ #?""" #?????????????? | | #??# """" # """ #?????????????? | | #??# """" # """ ##########????? | | %#??# + # T #????? | | *#??# ### ######## #????? | | #### """" #?# *## # ] #????? | | ## """" #?#%! =% # #????? | | ## """"% [ #?# =%! < + #????? | | % *%[ = % #?# ! # """"" #????? | | ### * #?# ### ### # """"" #????? | | #?########+### ## ?# #?## ## """"" #????? | | +###??# # ## ?#s#??# ## #????? | | ??????# # ## " ?# #??# ###########????? | | ??????# # ## ?# #??# #??????????????? | | ??????# !!! # ## ?# #?## ##?????????????? | | ??????# ![! # ### ?#s#?# #?????????????? | | ??????# ![ # #?# ##/### #?????????????? | | ??????# # ??# ? # = ##